fUST/lending_fUST_20240811
["ID","MTS","AMOUNT","RATE_DAILY","PERIOD"]
[334637794,1723371049166,-500.0,0.00021095,3]
[334637795,1723371049176,-500.0,0.00021095,3]
[334637796,1723371049185,-665.17,0.00021095,3]
[334637797,1723371049195,-500.0,0.00021095,3]
[334637798,1723371049204,-500.0,0.00021095,3]
[334637799,1723371049214,-151.0,0.00021095,2]
[334637800,1723371049224,-1055.87,0.00021095,3]
[334637801,1723371049233,-500.0,0.00021095,3]
[334637802,1723371049244,-500.0,0.00021095,3]
[334637803,1723371049254,-558.95,0.00021095,3]
[334637804,1723371049265,-500.0,0.00021095,3]
[334637805,1723371049275,-500.0,0.00021095,3]
[334637806,1723371049284,-628.16,0.00021095,3]
[334637807,1723371049293,-500.0,0.00021095,3]
[334637808,1723371049302,-500.0,0.00021095,3]
[334637809,1723371049312,-734.69,0.00021095,3]
[334637810,1723371049321,-672.7,0.00021095,3]
[334637811,1723371049331,-151.0,0.00021095,2]
[334637812,1723371049340,-500.0,0.00021095,3]
[334637813,1723371049350,-500.0,0.00021095,3]
[334637814,1723371049360,-500.0,0.00021095,3]
[334637815,1723371049369,-877.67,0.00021095,3]
[334637816,1723371049379,-1248.59,0.00021095,3]
[334637817,1723371049389,-500.0,0.00021095,3]
[334637818,1723371049399,-1227.07,0.00021095,3]
[334637819,1723371049409,-477.20019805,0.00021095,3]
[334637820,1723371049419,-500.0,0.00021095,3]
[334637821,1723371049429,-500.0,0.00021095,3]
[334637822,1723371049438,-587.79,0.00021095,3]
[334637823,1723371049448,-500.0,0.00021095,3]
[334637824,1723371049458,-500.0,0.00021095,3]
[334637825,1723371049468,-514.15,0.00021095,3]
[334637826,1723371049479,-1124.79,0.00021095,3]
[334637827,1723371049489,-1156.52,0.00021095,3]
[334637828,1723371049499,-647.43,0.00021095,3]
[334637829,1723371049509,-500.0,0.00021095,3]
[334637830,1723371049519,-500.0,0.00021095,3]
[334637831,1723371049530,-500.0,0.00021095,3]
[334637832,1723371049544,-1318.07,0.00021095,3]
[334637833,1723371049554,-500.0,0.00021095,3]
[334637834,1723371049564,-1386.14,0.00021095,3]
[334637835,1723371049576,-188.22693,0.00021095,2]
[334637836,1723371049585,-500.0,0.00021095,3]
[334637837,1723371049595,-500.0,0.00021095,3]
[334637838,1723371049607,-500.0,0.00021095,3]
[334637839,1723371049617,-503.14273655,0.00021095,3]
[334637840,1723371049628,-151.0,0.00021095,2]
[334637841,1723371049637,-630.46,0.00021095,3]
[334637842,1723371049648,-500.0,0.00021095,3]
[334637843,1723371049658,-500.0,0.00021095,3]
[334637844,1723371049668,-508.3809433,0.00021095,3]
[334637845,1723371049678,-500.0,0.00021095,3]
[334637846,1723371049688,-500.0,0.00021095,3]
[334637847,1723371049699,-500.0,0.00021095,3]
[334637848,1723371049709,-1002.27,0.00021095,3]
[334637849,1723371049719,-512.62371025,0.00021095,3]
[334637850,1723371049730,-289.80243658,0.00021095,3]
[334637851,1723371049741,-500.0,0.00021095,3]
[334637852,1723371049752,-500.0,0.00021095,3]
[334637853,1723371049763,-749.64,0.00021095,3]
[334637854,1723371049774,-500.0,0.00021095,3]
[334637855,1723371049784,-500.0,0.00021095,3]
[334637856,1723371049793,-500.0,0.00021095,3]
[334637857,1723371049803,-500.0,0.00021095,3]
[334637858,1723371049813,-500.0,0.00021095,3]
[334637859,1723371049824,-500.0,0.00021095,3]
[334637860,1723371049834,-500.0,0.00021095,3]
[334637861,1723371049844,-500.0,0.00021095,3]
[334637862,1723371049853,-500.0,0.00021095,3]
[334637863,1723371049864,-500.0,0.00021095,3]
[334637864,1723371049873,-1807.35,0.00021095,3]
[334637865,1723371049883,-500.0,0.00021095,3]
[334637866,1723371049893,-1204.05,0.00021095,3]
[334637867,1723371049903,-500.0,0.00021095,3]
[334637868,1723371049913,-1537.28,0.00021095,3]
[334637869,1723371049923,-500.0,0.00021095,3]
[334637870,1723371049934,-1469.3,0.00021095,3]
[334637871,1723371049944,-5226.84,0.00021095,3]
[334637872,1723371049954,-500.0,0.00021095,3]
[334637873,1723371049964,-412.884306,0.00021095,2]
[334637874,1723371049975,-151.0,0.00021095,2]
[334637875,1723371049985,-535.625742,0.00021095,2]
[334637876,1723371049995,-412.884306,0.00021095,2]
[334637877,1723371050004,-2220.34,0.00021095,3]
[334637878,1723371050016,-151.0,0.00021095,2]
[334637879,1723371050025,-535.625742,0.00021095,2]
[334637880,1723371050035,-2480.16,0.00021095,3]
[334637881,1723371050044,-500.0,0.00021095,3]
[334637882,1723371050055,-531.39450414,0.00021095,3]
[334637883,1723371050065,-500.0,0.00021095,3]
[334637884,1723371050076,-500.0,0.00021095,3]
[334637885,1723371050085,-2289.43,0.00021095,3]
[334637886,1723371050095,-1330.54,0.00021095,3]
[334637887,1723371050105,-500.0,0.00021095,3]
[334637888,1723371050115,-175.444706,0.00021095,2]
[334637889,1723371050125,-500.0,0.00021095,3]
[334637890,1723371050134,-500.0,0.00021095,3]
[334637891,1723371050144,-175.444706,0.00021095,2]
[334637892,1723371050154,-2207.41,0.00021095,3]
[334637893,1723371050164,-278.84094368,0.00021095,3]
[334637894,1723371050174,-1442.31,0.00021095,3]
[334637895,1723371050184,-524.11,0.00021095,3]
[334637896,1723371050194,-500.0,0.00021095,3]
[334637897,1723371050204,-500.0,0.00021095,3]
[334637898,1723371050214,-2195.35,0.00021095,3]
[334637899,1723371050223,-500.0,0.00021095,3]
[334637900,1723371050233,-500.0,0.00021095,3]
[334637901,1723371050244,-1253.92,0.00021095,3]
[334637902,1723371050254,-1230.81,0.00021095,3]
[334637903,1723371050408,-603.37,0.00021095,3]
[334637904,1723371050418,-504.48158229,0.00021095,3]
[334637905,1723371050428,-500.0,0.00021095,3]
[334637906,1723371050438,-500.0,0.00021095,3]
[334637907,1723371050447,-500.0,0.00021095,3]
[334637908,1723371050457,-742.26,0.00021095,3]
[334637909,1723371050468,-500.0,0.00021095,3]
[334637910,1723371050478,-596.03,0.00021095,3]
[334637911,1723371050488,-922.87,0.00021095,3]
[334637912,1723371050497,-11302.7,0.00021095,3]
[334637913,1723371050507,-500.0,0.00021095,3]
[334637914,1723371050517,-500.0,0.00021095,3]
[334637915,1723371050527,-500.0,0.00021095,3]
[334637916,1723371050540,-503.03257381,0.00021095,3]
[334637917,1723371050551,-2108.16,0.00021095,3]
[334637918,1723371050560,-500.0,0.00021095,3]
[334637919,1723371050570,-503.07080594,0.00021095,3]
[334637920,1723371050581,-500.0,0.00021095,3]
[334637921,1723371050590,-3496.99,0.00021095,3]
[334637922,1723371050599,-500.0,0.00021095,3]
[334637923,1723371050609,-271.685938,0.00021095,2]
[334637924,1723371050620,-500.0,0.00021095,3]
[334637925,1723371050629,-500.0,0.00021095,3]
[334637926,1723371050638,-271.685938,0.00021095,2]
[334637927,1723371050648,-2122.37,0.00021095,3]
[334637928,1723371050658,-500.0,0.00021095,3]
[334637929,1723371050667,-1220.03,0.00021095,3]
[334637930,1723371050678,-500.0,0.00021095,3]
[334637931,1723371050687,-2117.66,0.00021095,3]
[334637932,1723371050696,-1531.63,0.00021095,3]
[334637933,1723371050706,-500.0,0.00021095,3]
[334637934,1723371050716,-500.0,0.00021095,3]
[334637935,1723371050726,-3906.89,0.00021095,3]
[334637936,1723371050736,-500.0,0.00021095,3]
[334637937,1723371050745,-572.95,0.00021095,3]
[334637938,1723371050755,-500.0,0.00021095,3]
[334637939,1723371050769,-500.0,0.00021095,3]
[334637940,1723371050780,-620.44,0.00021095,3]
[334637941,1723371050790,-974.77,0.00021095,3]
[334637942,1723371050799,-419.492131,0.00021095,2]
[334637943,1723371050809,-870.51,0.00021095,3]
[334637944,1723371050819,-1102.42,0.00021095,3]
[334637945,1723371050828,-820.2,0.00021095,3]
[334637946,1723371050838,-550.05,0.00021095,3]
[334637947,1723371050848,-419.492131,0.00021095,2]
[334637948,1723371050857,-802.58,0.00021095,3]
[334637949,1723371050867,-500.0,0.00021095,3]
[334637950,1723371050876,-1324.91,0.00021095,3]
[334637951,1723371050886,-329.347041,0.00021095,2]
[334637952,1723371050896,-930.37,0.00021095,3]
[334637953,1723371050906,-1778.96,0.00021095,3]
[334637954,1723371050915,-500.0,0.00021095,3]
[334637955,1723371050925,-329.347041,0.00021095,2]
[334637956,1723371050935,-500.0,0.00021095,3]
[334637957,1723371050944,-151.0,0.00021095,2]
[334637958,1723371050954,-503.79819152,0.00021095,3]
[334637959,1723371050964,-500.0,0.00021095,3]
[334637960,1723371050974,-1122.56,0.00021095,3]
[334637961,1723371050984,-2873.95,0.00021095,3]
[334637962,1723371050995,-1520.79,0.00021095,3]
[334637963,1723371051004,-500.0,0.00021095,3]
[334637964,1723371051021,-500.0,0.00021095,3]
[334637965,1723371051030,-7855.68,0.00021095,3]
[334637966,1723371051040,-500.0,0.00021095,3]
[334637967,1723371051049,-500.0,0.00021095,3]
[334637968,1723371051059,-500.0,0.00021095,3]
[334637969,1723371051068,-500.0,0.00021095,3]
[334637970,1723371051077,-500.0,0.00021095,3]
[334637971,1723371051088,-500.0,0.00021095,3]
[334637972,1723371051097,-5405.26,0.00021095,3]
[334637973,1723371051107,-500.0,0.00021095,3]
[334637974,1723371051117,-11697.12,0.00021095,3]
[334637975,1723371051127,-500.0,0.00021095,3]
[334637976,1723371051136,-549.3,0.00021095,3]
[334637977,1723371051145,-1238.49,0.00021095,3]
[334637978,1723371051155,-1400.35,0.00021095,3]
[334637979,1723371051164,-819.67,0.00021095,3]
[334637980,1723371051174,-500.0,0.00021095,3]
[334637981,1723371051183,-151.0,0.00021095,2]
[334637982,1723371051193,-151.0,0.00021095,2]
[334637983,1723371051202,-5526.82,0.00021095,3]
[334637984,1723371051211,-844.31,0.00021095,3]
[334637985,1723371051221,-168.525489,0.00021095,2]
[334637986,1723371051231,-151.0,0.00021095,2]
[334637987,1723371051241,-151.0,0.00021095,2]
[334637988,1723371051251,-168.525489,0.00021095,2]
[334637989,1723371051265,-500.0,0.00021095,3]
[334637990,1723371051274,-151.0,0.00021095,2]
[334637991,1723371051283,-1864.71,0.00021095,3]
[334637992,1723371051292,-575.62361202,0.00021095,3]
[334637993,1723371051300,-1732.79,0.00021095,3]
[334637994,1723371051309,-500.0,0.00021095,3]
[334637995,1723371051318,-1777.04,0.00021095,3]
[334637996,1723371051327,-957.21,0.00021095,3]
[334637997,1723371051336,-500.0,0.00021095,3]
[334637998,1723371051346,-500.0,0.00021095,3]
[334637999,1723371051355,-500.0,0.00021095,3]
[334638000,1723371051365,-874.56,0.00021095,3]
[334638001,1723371051376,-500.0,0.00021095,3]
[334638002,1723371051386,-247.725,0.00021095,2]
[334638003,1723371051396,-500.0,0.00021095,3]
[334638004,1723371051406,-1615.05,0.00021095,3]
[334638005,1723371051415,-500.0,0.00021095,3]
[334638006,1723371051425,-664.6,0.00021095,3]
[334638007,1723371051435,-500.0,0.00021095,3]
[334638008,1723371051444,-376.294473,0.00021095,2]
[334638009,1723371051454,-504.9600289,0.00021095,3]
[334638010,1723371051463,-247.725,0.00021095,2]
[334638011,1723371051472,-376.294473,0.00021095,2]
[334638012,1723371051481,-1023.33,0.00021095,3]
[334638013,1723371051491,-500.0,0.00021095,3]
[334638014,1723371051500,-980.72,0.00021095,3]
[334638015,1723371051513,-500.0,0.00021095,3]
[334638016,1723371051523,-1224.91,0.00021095,3]
[334638017,1723371051534,-500.0,0.00021095,3]
[334638018,1723371051544,-500.0,0.00021095,3]
[334638019,1723371051554,-500.0,0.00021095,3]
[334638020,1723371051563,-500.0,0.00021095,3]
[334638021,1723371051572,-500.0,0.00021095,3]
[334638022,1723371051582,-500.0,0.00021095,3]
[334638023,1723371051592,-151.0,0.00021095,2]
[334638024,1723371051601,-162.084095,0.00021095,2]
[334638025,1723371051612,-688.53,0.00021095,3]
[334638026,1723371051621,-500.0,0.00021095,3]
[334638027,1723371051632,-500.0,0.00021095,3]
[334638028,1723371051642,-650.6,0.00021095,3]
[334638029,1723371051653,-803.57,0.00021095,3]
[334638030,1723371051662,-162.084095,0.00021095,2]
[334638031,1723371051671,-2291.15,0.00021095,3]
[334638032,1723371051681,-500.0,0.00021095,3]
[334638033,1723371051691,-500.0,0.00021095,3]
[334638034,1723371051700,-500.0,0.00021095,3]
[334638035,1723371051709,-500.0,0.00021095,3]
[334638036,1723371051718,-744.55,0.00021095,3]
[334638037,1723371051727,-500.0,0.00021095,2]
[334638038,1723371051737,-3592.97,0.00021095,3]
[334638039,1723371051746,-5139.52535889,0.00021134,2]
[334638040,1723371051755,-503.97800149,0.000212,2]
[334638041,1723371051768,-155.0,0.0002122,5]
[334638042,1723371051777,-151.0,0.00021239,2]
[334638043,1723371051787,-151.0,0.00021239,2]
[334638044,1723371051797,-631.96235428,0.00021308,2]
[334638045,1723371051806,-500.0,0.00021369,3]
[334638046,1723371051816,-500.0,0.00021369,3]
[334638047,1723371051826,-500.0,0.00021369,3]
[334638048,1723371051835,-151.0,0.00021369,2]
[334638049,1723371051846,-500.0,0.00021369,3]
[334638050,1723371051857,-500.0,0.00021369,3]
[334638051,1723371051867,-151.0,0.00021369,2]
[334638052,1723371051876,-500.0,0.00021369,3]
[334638053,1723371051886,-500.0,0.00021369,3]
[334638054,1723371051896,-151.0,0.00021369,2]
[334638055,1723371051907,-500.0,0.00021369,3]
[334638056,1723371051916,-500.0,0.00021369,3]
[334638057,1723371051926,-500.0,0.00021369,3]
[334638058,1723371051936,-515.10562149,0.00021369,3]
[334638059,1723371051946,-500.0,0.00021369,3]
[334638060,1723371051956,-500.0,0.00021369,3]
[334638061,1723371051965,-500.0,0.00021369,3]
[334638062,1723371051975,-500.0,0.00021369,3]
[334638063,1723371051984,-500.0,0.00021369,3]
[334638064,1723371051993,-500.0,0.00021369,3]
[334638065,1723371052003,-500.0,0.00021369,3]
[334638066,1723371052015,-500.0,0.00021369,3]
[334638067,1723371052024,-500.0,0.00021369,3]
[334638068,1723371052035,-500.0,0.00021369,3]
[334638069,1723371052046,-500.0,0.00021369,3]
[334638070,1723371052056,-500.0,0.00021369,3]
[334638071,1723371052065,-512.71199984,0.00021369,3]
[334638072,1723371052074,-500.0,0.00021369,3]
[334638073,1723371052084,-791.8,0.00021369,3]
[334638074,1723371052094,-500.0,0.00021369,3]
[334638075,1723371052103,-500.0,0.00021369,3]
[334638076,1723371052112,-675.29,0.00021369,3]
[334638077,1723371052121,-500.0,0.00021369,3]
[334638078,1723371052130,-585.21,0.00021369,3]
[334638079,1723371052139,-500.0,0.00021369,3]
[334638080,1723371052148,-500.0,0.00021369,3]
[334638081,1723371052158,-528.73,0.00021369,3]
[334638082,1723371052167,-500.0,0.00021369,3]
[334638083,1723371052177,-500.0,0.00021369,3]
[334638084,1723371052186,-500.0,0.00021369,3]
[334638085,1723371052195,-500.0,0.00021369,3]
[334638086,1723371052204,-732.64,0.00021369,3]
[334638087,1723371052214,-247.851355,0.00021369,2]
[334638088,1723371052223,-500.0,0.00021369,3]
[334638089,1723371052233,-500.0,0.00021369,3]
[334638090,1723371052243,-500.0,0.00021369,3]
[334638091,1723371052252,-904.48,0.00021369,3]
[334638092,1723371052271,-1253.26,0.00021369,3]
[334638093,1723371052280,-500.0,0.00021369,3]
[334638094,1723371052290,-903.29,0.00021369,3]
[334638095,1723371052301,-218.208164,0.00021369,2]
[334638096,1723371052311,-218.208164,0.00021369,2]
[334638097,1723371052323,-500.0,0.00021369,3]
[334638098,1723371052333,-569.12,0.00021369,3]
[334638099,1723371052343,-500.0,0.00021369,3]
[334638100,1723371052354,-821.33,0.00021369,3]
[334638101,1723371052364,-500.0,0.00021369,3]
[334638102,1723371052374,-500.0,0.00021369,3]
[334638103,1723371052383,-500.0,0.00021369,3]
[334638104,1723371052392,-500.0,0.00021369,3]
[334638105,1723371052401,-500.0,0.00021369,3]
[334638106,1723371052411,-500.0,0.00021369,3]
[334638107,1723371052420,-500.0,0.00021369,3]
[334638108,1723371052430,-500.0,0.00021369,3]
[334638109,1723371052439,-512.62,0.00021369,3]
[334638110,1723371052448,-554.9899808,0.00021369,3]
[334638111,1723371052458,-500.0,0.00021369,3]
[334638112,1723371052467,-1968.98,0.00021369,3]
[334638113,1723371052476,-500.0,0.00021369,3]
[334638114,1723371052486,-500.0,0.00021369,3]
[334638115,1723371052495,-500.0,0.00021369,3]
[334638116,1723371052504,-957.84,0.00021369,3]
[334638117,1723371052517,-757.32,0.00021369,3]
[334638118,1723371052526,-500.0,0.00021369,3]
[334638119,1723371052541,-482.33552864,0.00021369,3]
[334638120,1723371052550,-500.0,0.00021369,3]
[334638121,1723371052560,-506.58495556,0.00021369,3]
[334638122,1723371052570,-690.03,0.00021369,3]
[334638123,1723371052582,-500.0,0.00021369,3]
[334638124,1723371052592,-500.0,0.00021369,3]
[334638125,1723371052601,-500.0,0.00021369,3]
[334638126,1723371052611,-500.0,0.00021369,3]
[334638127,1723371052621,-500.0,0.00021369,3]
[334638128,1723371052631,-500.0,0.00021369,3]
[334638129,1723371052640,-151.0,0.00021369,2]
[334638130,1723371052650,-151.0,0.00021369,2]
[334638131,1723371052659,-500.0,0.00021369,3]
[334638132,1723371052669,-699.33,0.00021369,3]
[334638133,1723371052678,-1461.53,0.00021369,3]
[334638134,1723371052688,-500.0,0.00021369,3]
[334638135,1723371052698,-500.0,0.00021369,3]
[334638136,1723371052709,-526.52,0.00021369,3]
[334638137,1723371052718,-500.0,0.00021369,2]
[334638138,1723371052728,-545.2089341,0.00021369,3]
[334638139,1723371052738,-567.72860209,0.00021369,3]
[334638140,1723371052748,-520.43466718,0.00021369,3]
[334638141,1723371052757,-500.0,0.00021369,3]
[334638142,1723371052770,-500.0,0.00021369,3]
[334638143,1723371052780,-500.0,0.00021369,3]
[334638144,1723371052791,-500.0,0.00021369,3]
[334638145,1723371052801,-561.47,0.00021369,3]
[334638146,1723371052810,-618.79473176,0.00021369,3]
[334638147,1723371052820,-871.95,0.00021369,3]
[334638148,1723371052830,-500.0,0.00021369,3]
[334638149,1723371052840,-653.61,0.00021369,3]
[334638150,1723371052850,-1054.79,0.00021369,3]
[334638151,1723371052860,-669.58,0.00021369,3]
[334638152,1723371052870,-729.94,0.00021369,3]
[334638153,1723371052881,-500.0,0.00021369,3]
[334638154,1723371052892,-151.0,0.00021369,2]
[334638155,1723371052903,-783.95,0.00021369,3]
[334638156,1723371052913,-500.0,0.00021369,3]
[334638157,1723371052923,-621.77354407,0.00021369,3]
[334638158,1723371052933,-151.0,0.00021369,2]
[334638159,1723371052943,-500.0,0.00021369,3]
[334638160,1723371052953,-665.17,0.00021369,3]
[334638161,1723371052963,-500.0,0.00021369,3]
[334638162,1723371052973,-1055.87,0.00021369,3]
[334638163,1723371052983,-230.19396,0.00021369,2]
[334638164,1723371052993,-500.0,0.00021369,3]
[334638165,1723371053003,-230.19396,0.00021369,2]
[334638166,1723371053013,-500.0,0.00021369,3]
[334638167,1723371053024,-558.95,0.00021369,3]
[334638168,1723371053034,-500.0,0.00021369,3]
[334638169,1723371053044,-500.0,0.00021369,3]
[334638170,1723371053053,-628.16,0.00021369,3]
[334638171,1723371053062,-500.0,0.00021369,3]
[334638172,1723371053071,-500.0,0.00021369,3]
[334638173,1723371053081,-734.69,0.00021369,3]
[334638174,1723371053091,-672.7,0.00021369,3]
[334638175,1723371053102,-500.0,0.00021369,3]
[334638176,1723371053112,-500.0,0.00021369,3]
[334638177,1723371053122,-500.0,0.00021369,3]
[334638178,1723371053132,-877.67,0.00021369,3]
[334638179,1723371053141,-1248.59,0.00021369,3]
[334638180,1723371053151,-500.0,0.00021369,3]
[334638181,1723371053161,-1227.07,0.00021369,3]
[334638182,1723371053170,-500.0,0.00021369,3]
[334638183,1723371053180,-500.0,0.00021369,3]
[334638184,1723371053190,-587.79,0.00021369,3]
[334638185,1723371053200,-500.0,0.00021369,3]
[334638186,1723371053209,-500.0,0.00021369,3]
[334638187,1723371053219,-514.15,0.00021369,3]
[334638188,1723371053230,-1124.79,0.00021369,3]
[334638189,1723371053241,-1156.52,0.00021369,3]
[334638190,1723371053252,-647.43,0.00021369,3]
[334638191,1723371053262,-500.0,0.00021369,3]
[334638192,1723371053272,-500.0,0.00021369,3]
[334638193,1723371053282,-500.0,0.00021369,3]
[334638194,1723371053291,-1318.07,0.00021369,3]
[334638195,1723371053300,-400.0,0.00021369,3]
[334638196,1723371053310,-1386.14,0.00021369,3]
[334638197,1723371053320,-500.0,0.00021369,3]
[334638198,1723371053329,-500.0,0.00021369,3]
[334638199,1723371053339,-500.0,0.00021369,3]
[334638200,1723371053349,-191.485801,0.00021369,2]
[334638201,1723371053358,-630.46,0.00021369,3]
[334638202,1723371053367,-500.0,0.00021369,3]
[334638203,1723371053377,-500.0,0.00021369,3]
[334638204,1723371053387,-519.09382168,0.00021369,3]
[334638205,1723371053396,-500.0,0.00021369,3]
[334638206,1723371053406,-500.0,0.00021369,3]
[334638207,1723371053416,-1002.27,0.00021369,3]
[334638208,1723371053426,-500.0,0.00021369,3]
[334638209,1723371053435,-500.0,0.00021369,3]
[334638210,1723371053445,-749.64,0.00021369,3]
[334638211,1723371053455,-500.0,0.00021369,3]
[334638212,1723371053464,-500.0,0.00021369,3]
[334638213,1723371053474,-500.0,0.00021369,3]
[334638214,1723371053484,-500.0,0.00021369,3]
[334638215,1723371053493,-500.0,0.00021369,3]
[334638216,1723371053503,-500.0,0.00021369,3]
[334638217,1723371053514,-500.0,0.00021369,3]
[334638218,1723371053524,-616.74667674,0.00021369,3]
[334638219,1723371053533,-500.0,0.00021369,3]
[334638220,1723371053546,-500.0,0.00021369,3]
[334638221,1723371053555,-1807.35,0.00021369,3]
[334638222,1723371053564,-500.0,0.00021369,3]
[334638223,1723371053574,-1204.05,0.00021369,3]
[334638224,1723371053586,-500.0,0.00021369,3]
[334638225,1723371053598,-1537.28,0.00021369,3]
[334638226,1723371053608,-500.0,0.00021369,3]
[334638227,1723371053618,-1469.3,0.00021369,3]
[334638228,1723371053629,-5226.84,0.00021369,3]
[334638229,1723371053639,-500.0,0.00021369,3]
[334638230,1723371053648,-412.884306,0.00021369,2]
[334638231,1723371053658,-151.0,0.00021369,2]
[334638232,1723371053790,-535.625742,0.00021369,2]
[334638233,1723371053800,-412.884306,0.00021369,2]
[334638234,1723371053809,-2220.34,0.00021369,3]
[334638235,1723371053819,-198.120916,0.00021369,2]
[334638236,1723371053829,-535.625742,0.00021369,2]
[334638237,1723371053839,-2480.16,0.00021369,3]
[334638238,1723371053849,-500.0,0.00021369,3]
[334638239,1723371053859,-500.0,0.00021369,3]
[334638240,1723371053868,-500.0,0.00021369,3]
[334638241,1723371053877,-2289.43,0.00021369,3]
[334638242,1723371053887,-1330.54,0.00021369,3]
[334638243,1723371053897,-500.0,0.00021369,3]
[334638244,1723371053906,-500.0,0.00021369,3]
[334638245,1723371053916,-500.0,0.00021369,3]
[334638246,1723371053925,-2207.41,0.00021369,3]
[334638247,1723371053935,-1442.31,0.00021369,3]
[334638248,1723371053944,-524.11,0.00021369,3]
[334638249,1723371053954,-500.0,0.00021369,3]
[334638250,1723371053963,-500.0,0.00021369,3]
[334638251,1723371053974,-2195.35,0.00021369,3]
[334638252,1723371053983,-500.0,0.00021369,3]
[334638253,1723371053993,-500.0,0.00021369,3]
[334638254,1723371054003,-1253.92,0.00021369,3]
[334638255,1723371054014,-1230.81,0.00021369,3]
[334638256,1723371054023,-603.37,0.00021369,3]
[334638257,1723371054035,-508.86480673,0.00021369,3]
[334638258,1723371054046,-500.0,0.00021369,3]
[334638259,1723371054057,-500.0,0.00021369,3]
[334638260,1723371054067,-742.26,0.00021369,3]
[334638261,1723371054077,-500.0,0.00021369,3]
[334638262,1723371054086,-596.03,0.00021369,3]
[334638263,1723371054096,-922.87,0.00021369,3]
[334638264,1723371054105,-11302.7,0.00021369,3]
[334638265,1723371054115,-500.0,0.00021369,3]
[334638266,1723371054124,-500.0,0.00021369,3]
[334638267,1723371054134,-2108.16,0.00021369,3]
[334638268,1723371054143,-500.0,0.00021369,3]
[334638269,1723371054152,-500.0,0.00021369,3]
[334638270,1723371054162,-3496.99,0.00021369,3]
[334638271,1723371054171,-500.0,0.00021369,3]
[334638272,1723371054181,-271.685938,0.00021369,2]
[334638273,1723371054191,-500.0,0.00021369,3]
[334638274,1723371054200,-500.0,0.00021369,3]
[334638275,1723371054210,-271.685938,0.00021369,2]
[334638276,1723371054220,-2122.37,0.00021369,3]
[334638277,1723371054230,-500.0,0.00021369,3]
[334638278,1723371054239,-1220.03,0.00021369,3]
[334638279,1723371054249,-500.0,0.00021369,3]
[334638280,1723371054259,-2117.66,0.00021369,3]
[334638281,1723371054270,-1531.63,0.00021369,3]
[334638282,1723371054279,-500.0,0.00021369,3]
[334638283,1723371054288,-500.0,0.00021369,3]
[334638284,1723371054297,-3906.89,0.00021369,3]
[334638285,1723371054307,-500.0,0.00021369,3]
[334638286,1723371054317,-572.95,0.00021369,3]
[334638287,1723371054326,-500.0,0.00021369,3]
[334638288,1723371054336,-500.0,0.00021369,3]
[334638289,1723371054345,-620.44,0.00021369,3]
[334638290,1723371054355,-974.77,0.00021369,3]
[334638291,1723371054364,-419.492131,0.00021369,2]
[334638292,1723371054374,-870.51,0.00021369,3]
[334638293,1723371054383,-1102.42,0.00021369,3]